[Event "TOP 12 FEMININ 2022 - Phase 1"]
[Site "MULHOUSE, France"]
[Date "2022.04.09"]
[Round "3.10"]
[White "FORTUIT  JUV, Emilie"]
[Black "BEREND VAN, Elvira"]
[Result "0-1"]
[TimeControl "90 min +30 secondes par coup"]
[WhiteElo "1954"]
[BlackElo "2323"]

1. d4 {[%clk 01:27:44]} {[%emt 00:03:15]} Nf6 {[%clk 01:30:52]} {[%emt
00:00:08]} 2. Nf3 {[%clk 01:27:58]} {[%emt 00:00:16]} g6 {[%clk 01:31:15]}
{[%emt 00:00:07]} 3. Bg5 {[%clk 01:28:16]} {[%emt 00:00:13]} Bg7 {[%clk
01:31:35]} {[%emt 00:00:09]} 4. Nbd2 {[%clk 01:28:04]} {[%emt 00:00:43]} d5
{[%clk 01:30:37]} {[%emt 00:01:29]} 5. e3 {[%clk 01:27:43]} {[%emt 00:00:50]}
c6 {[%clk 01:30:19]} {[%emt 00:00:48]} 6. Bd3 {[%clk 01:24:36]} {[%emt
00:03:36]} Nbd7 {[%clk 01:30:15]} {[%emt 00:00:34]} 7. h3 {[%clk 01:24:14]}
{[%emt 00:00:52]} O-O {[%clk 01:29:45]} {[%emt 00:01:00]} 8. Bf4 {[%clk
01:20:35]} {[%emt 00:04:10]} c5 {[%clk 01:26:30]} {[%emt 00:03:44]} 9. c3
{[%clk 01:19:12]} {[%emt 00:01:53]} b6 {[%clk 01:23:17]} {[%emt 00:03:44]} 10.
O-O {[%clk 01:17:30]} {[%emt 00:02:11]} Bb7 {[%clk 01:23:01]} {[%emt 00:00:46]}
11. Bh2 {[%clk 01:17:35]} {[%emt 00:00:26]} Re8 {[%clk 01:19:35]} {[%emt
00:03:55]} 12. Ne5 {[%clk 01:09:28]} {[%emt 00:08:38]} Rc8 {[%clk 01:16:18]}
{[%emt 00:03:47]} 13. f4 {[%clk 01:08:09]} {[%emt 00:01:48]} Ne4 {[%clk
01:12:14]} {[%emt 00:04:34]} 14. f5 {[%clk 01:01:24]} {[%emt 00:07:15]} Nxe5
{[%clk 01:05:51]} {[%emt 00:06:53]} 15. dxe5 {[%clk 01:00:53]} {[%emt
00:01:01]} Bh6 {[%clk 01:03:47]} {[%emt 00:02:35]} 16. Bf4 {[%clk 00:53:27]}
{[%emt 00:07:56]} Bxf4 {[%clk 00:54:05]} {[%emt 00:10:12]} 17. Rxf4 {[%clk
00:52:57]} {[%emt 00:01:00]} g5 {[%clk 00:45:56]} {[%emt 00:08:39]} 18. Rf1
{[%clk 00:52:00]} {[%emt 00:01:26]} Qc7 {[%clk 00:42:30]} {[%emt 00:03:56]} 19.
e6 {[%clk 00:48:03]} {[%emt 00:04:27]} f6 {[%clk 00:37:29]} {[%emt 00:05:31]}
20. Bxe4 {[%clk 00:45:40]} {[%emt 00:02:54]} dxe4 {[%clk 00:37:40]} {[%emt
00:00:19]} 21. Qg4 {[%clk 00:45:41]} {[%emt 00:00:29]} Kh8 {[%clk 00:32:39]}
{[%emt 00:05:31]} 22. Rad1 {[%clk 00:43:11]} {[%emt 00:03:00]} Ba6 {[%clk
00:27:58]} {[%emt 00:05:11]} 23. Rfe1 {[%clk 00:41:03]} {[%emt 00:02:38]} Qe5
{[%clk 00:26:15]} {[%emt 00:02:13]} 24. Qxe4 {[%clk 00:38:48]} {[%emt
00:02:45]} Qxe4 {[%clk 00:23:54]} {[%emt 00:02:52]} 25. Nxe4 {[%clk 00:39:11]}
{[%emt 00:00:06]} Red8 {[%clk 00:21:56]} {[%emt 00:02:27]} 26. Nf2 {[%clk
00:38:59]} {[%emt 00:00:42]} Kg7 {[%clk 00:21:01]} {[%emt 00:01:25]} 27. e4
{[%clk 00:32:46]} {[%emt 00:06:42]} Bb5 {[%clk 00:18:31]} {[%emt 00:03:01]} 28.
g3 {[%clk 00:30:25]} {[%emt 00:02:51]} h5 {[%clk 00:16:48]} {[%emt 00:02:14]}
29. Kg2 {[%clk 00:30:03]} {[%emt 00:00:52]} Bc6 {[%clk 00:16:17]} {[%emt
00:01:00]} 30. Kf3 {[%clk 00:30:13]} {[%emt 00:00:20]} Kh6 {[%clk 00:14:34]}
{[%emt 00:02:13]} 31. Ke3 {[%clk 00:30:25]} {[%emt 00:00:18]} Kg7 {[%clk
00:14:23]} {[%emt 00:00:41]} 32. Rxd8 {[%clk 00:30:13]} {[%emt 00:00:42]} Rxd8
{[%clk 00:14:48]} {[%emt 00:00:05]} 33. Rd1 {[%clk 00:30:35]} {[%emt 00:00:08]}
Rxd1 {[%clk 00:14:34]} {[%emt 00:00:45]} 34. Nxd1 {[%clk 00:31:00]} {[%emt
00:00:05]} Kf8 {[%clk 00:12:29]} {[%emt 00:02:35]} 35. Nf2 {[%clk 00:30:52]}
{[%emt 00:00:38]} Kg7 {[%clk 00:12:07]} {[%emt 00:00:51]} 36. b4 {[%clk
00:30:35]} {[%emt 00:00:47]} cxb4 {[%clk 00:11:06]} {[%emt 00:01:33]} 37. cxb4
{[%clk 00:30:59]} {[%emt 00:00:04]} a5 {[%clk 00:08:47]} {[%emt 00:02:49]} 38.
bxa5 {[%clk 00:30:03]} {[%emt 00:01:26]} bxa5 {[%clk 00:09:13]} {[%emt
00:00:05]} 39. h4 {[%clk 00:28:39]} {[%emt 00:01:54]} Bb5 {[%clk 00:06:52]}
{[%emt 00:02:50]} 40. a3 {[%clk 00:28:31]} {[%emt 00:00:39]} Ba4 {[%clk
00:05:55]} {[%emt 00:01:27]} 41. Kd4 {[%clk 00:28:22]} {[%emt 00:00:39]} Bc2
{[%clk 00:05:59]} {[%emt 00:00:25]} 42. Kc5 {[%clk 00:28:08]} {[%emt 00:00:44]}
Kf8 {[%clk 00:05:18]} {[%emt 00:01:12]} 43. Kb6 {[%clk 00:27:36]} {[%emt
00:01:02]} a4 {[%clk 00:05:34]} {[%emt 00:00:14]} 44. Kc5 {[%clk 00:27:47]}
{[%emt 00:00:19]} Ke8 {[%clk 00:05:31]} {[%emt 00:00:33]} 45. Kd4 {[%clk
00:28:02]} {[%emt 00:00:14]} Kf8 {[%clk 00:05:47]} {[%emt 00:00:14]} 46. Nh3
{[%clk 00:28:05]} {[%emt 00:00:27]} Kg7 {[%clk 00:04:18]} {[%emt 00:02:00]} 47.
hxg5 {[%clk 00:27:39]} {[%emt 00:00:56]} fxg5 {[%clk 00:04:43]} {[%emt
00:00:05]} 48. Nxg5 {[%clk 00:28:03]} {[%emt 00:00:05]} Kf6 {[%clk 00:05:05]}
{[%emt 00:00:09]} 49. Nf7 {[%clk 00:27:42]} {[%emt 00:00:50]} Bb1 {[%clk
00:04:42]} {[%emt 00:00:53]} 50. Ke3 {[%clk 00:28:03]} {[%emt 00:00:08]} Bc2
{[%clk 00:04:01]} {[%emt 00:01:12]} 51. Kf4 {[%clk 00:28:27]} {[%emt 00:00:06]}
Bb3 {[%clk 00:04:20]} {[%emt 00:00:12]} 52. e5+ {[%clk 00:28:42]} {[%emt
00:00:15]} Kg7 {[%clk 00:04:45]} {[%emt 00:00:05]} 53. Kg5 {[%clk 00:29:04]}
{[%emt 00:00:08]} Bd1 {[%clk 00:04:33]} {[%emt 00:00:42]} 54. Nh6 {[%clk
00:29:01]} {[%emt 00:00:32]} Kf8 {[%clk 00:04:07]} {[%emt 00:00:57]} 55. Nf7
{[%clk 00:27:41]} {[%emt 00:01:49]} Kg7 {[%clk 00:04:09]} {[%emt 00:00:28]} 56.
f6+ {[%clk 00:26:33]} {[%emt 00:01:38]} Kf8 {[%clk 00:04:14]} {[%emt 00:00:26]}
57. Nh8 {[%clk 00:26:50]} {[%emt 00:00:12]} Bc2 {[%clk 00:01:45]} {[%emt
00:02:59]} 58. Ng6+ {[%clk 00:26:50]} {[%emt 00:00:30]} Bxg6 {[%clk 00:01:14]}
{[%emt 00:01:03]} 59. Kxg6 {[%clk 00:27:15]} {[%emt 00:00:04]} h4 {[%clk
00:00:52]} {[%emt 00:00:52]} 60. gxh4 {[%clk 00:27:38]} {[%emt 00:00:07]} Ke8
{[%clk 00:00:58]} {[%emt 00:00:24]} 61. Kg7 {[%clk 00:27:59]} {[%emt 00:00:08]}
0-1

[Event "TOP 12 FEMININ 2022 - Phase 1"]
[Site "MULHOUSE, France"]
[Date "2022.04.09"]
[Round "3.11"]
[White "SALVADOR JUV, Lucie"]
[Black "STEIL-ANTONI  VAN, Fiona"]
[Result "1-0"]
[TimeControl "90 min +30 secondes par coup"]
[WhiteElo "1979"]
[BlackElo "2189"]

1. Nf3 {[%clk 01:30:58]} d6 {[%clk 01:30:47]} {[%emt 00:00:13]} 2. d4 {[%clk
01:31:12]} {[%emt 00:00:16]} f5 {[%clk 01:29:42]} {[%emt 00:01:36]} 3. c4
{[%clk 01:29:52]} {[%emt 00:01:50]} Nf6 {[%clk 01:29:08]} {[%emt 00:01:04]} 4.
Nc3 {[%clk 01:27:20]} {[%emt 00:03:02]} e6 {[%clk 01:29:12]} {[%emt 00:00:26]}
5. h3 {[%clk 01:20:52]} {[%emt 00:06:57]} Be7 {[%clk 01:27:31]} {[%emt
00:02:12]} 6. e3 {[%clk 01:19:33]} {[%emt 00:01:48]} O-O {[%clk 01:27:24]}
{[%emt 00:00:37]} 7. Bd3 {[%clk 01:19:39]} {[%emt 00:00:24]} Nc6 {[%clk
01:25:04]} {[%emt 00:02:51]} 8. a3 {[%clk 01:13:15]} {[%emt 00:06:54]} e5
{[%clk 01:19:56]} {[%emt 00:05:38]} 9. Bc2 {[%clk 01:12:17]} {[%emt 00:01:28]}
Qe8 {[%clk 01:19:12]} {[%emt 00:01:14]} 10. Nd5 {[%clk 01:06:39]} {[%emt
00:06:07]} Bd8 {[%clk 01:18:59]} {[%emt 00:00:42]} 11. O-O {[%clk 01:04:57]}
{[%emt 00:02:12]} Qh5 {[%clk 01:05:46]} {[%emt 00:13:43]} 12. b4 {[%clk
01:02:54]} {[%emt 00:02:34]} g5 {[%clk 00:58:19]} {[%emt 00:07:57]} 13. dxe5
{[%clk 00:52:05]} {[%emt 00:11:18]} dxe5 {[%clk 00:49:59]} {[%emt 00:08:50]} 14.
Bb2 {[%clk 00:51:10]} {[%emt 00:01:25]} e4 {[%clk 00:41:42]} {[%emt 00:08:47]}
15. Ne5 {[%clk 00:47:11]} {[%emt 00:04:29]} Qe8 {[%clk 00:36:59]} {[%emt
00:05:13]} 16. Nxc6 {[%clk 00:39:39]} {[%emt 00:08:03]} bxc6 {[%clk 00:35:08]}
{[%emt 00:02:20]} 17. Nxf6+ {[%clk 00:38:35]} {[%emt 00:01:35]} Bxf6 {[%clk
00:35:28]} {[%emt 00:00:10]} 18. Bxf6 {[%clk 00:39:02]} {[%emt 00:00:02]} Rxf6
{[%clk 00:35:52]} {[%emt 00:00:06]} 19. c5 {[%clk 00:37:53]} {[%emt 00:01:40]}
Be6 {[%clk 00:32:56]} {[%emt 00:03:26]} 20. Qd4 {[%clk 00:36:27]} {[%emt
00:01:56]} Rh6 {[%clk 00:33:01]} {[%emt 00:00:25]} 21. f3 {[%clk 00:31:51]}
{[%emt 00:05:05]} Rd8 {[%clk 00:28:29]} {[%emt 00:05:02]} 22. Qc3 {[%clk
00:31:31]} {[%emt 00:00:50]} Bd5 {[%clk 00:27:43]} {[%emt 00:01:17]} 23. Bb3
{[%clk 00:30:39]} {[%emt 00:01:21]} Qe6 {[%clk 00:26:28]} {[%emt 00:01:45]} 24.
Rad1 {[%clk 00:25:33]} {[%emt 00:05:36]} g4 {[%clk 00:21:05]} {[%emt 00:05:54]}
25. fxe4 {[%clk 00:24:04]} {[%emt 00:01:59]} fxe4 {[%clk 00:16:10]} {[%emt
00:05:25]} 26. hxg4 {[%clk 00:22:22]} {[%emt 00:02:12]} Qxg4 {[%clk 00:16:12]}
{[%emt 00:00:28]} 27. Bxd5+ {[%clk 00:21:48]} {[%emt 00:01:04]} cxd5 {[%clk
00:16:39]} {[%emt 00:00:03]} 28. Qe5 {[%clk 00:18:38]} {[%emt 00:03:40]} Qh4
{[%clk 00:14:29]} {[%emt 00:02:39]} 29. Rf4 {[%clk 00:19:06]} {[%emt 00:00:02]}
Qh2+ {[%clk 00:12:51]} {[%emt 00:02:08]} 30. Kf2 {[%clk 00:18:52]} {[%emt
00:00:44]} Rg6 {[%clk 00:11:56]} {[%emt 00:01:26]} 31. Rg1 {[%clk 00:18:58]}
{[%emt 00:00:24]} Qg3+ {[%clk 00:05:42]} {[%emt 00:06:43]} 32. Ke2 {[%clk
00:18:40]} {[%emt 00:00:48]} Rg7 {[%clk 00:03:49]} {[%emt 00:02:23]} 33. Qf6
{[%clk 00:09:11]} {[%emt 00:10:00]} Qg5 {[%clk 00:01:43]} {[%emt 00:02:35]} 34.
Qe6+ {[%clk 00:06:48]} {[%emt 00:02:53]} Kh8 {[%clk 00:02:12]} 35. g4 {[%clk
00:06:17]} {[%emt 00:01:01]} d4 {[%clk 00:01:28]} {[%emt 00:01:15]} 36. Rxe4
{[%clk 00:05:12]} {[%emt 00:01:35]} d3+ {[%clk 00:01:16]} {[%emt 00:00:42]} 37.
Kd2 {[%clk 00:05:36]} {[%emt 00:00:06]} Qh4 {[%clk 00:01:02]} {[%emt 00:00:44]}
38. Rg2 {[%clk 00:04:48]} {[%emt 00:01:17]} Rf8 {[%clk 00:01:15]} {[%emt
00:00:18]} 39. Kxd3 {[%clk 00:02:50]} {[%emt 00:02:28]} Qe1 {[%clk 00:01:43]}
{[%emt 00:00:01]} 40. Qa2 {[%clk 00:02:33]} {[%emt 00:00:48]} Rd8+ {[%clk
00:01:21]} {[%emt 00:00:51]} 41. Rd4 {[%clk 00:01:56]} {[%emt 00:01:07]} Re8
{[%clk 00:01:51]} {[%emt 00:00:01]} 42. Qe2 {[%clk 00:01:41]} {[%emt 00:00:43]}
Qc1 {[%clk 00:01:58]} {[%emt 00:00:24]} 43. a4 {[%clk 00:00:38]} {[%emt
00:01:34]} Rge7 {[%clk 00:01:34]} {[%emt 00:00:53]} 44. e4 {[%clk 00:00:41]}
{[%emt 00:00:27]} Qa3+ {[%clk 00:01:53]} {[%emt 00:00:11]} 45. Kd2 {[%clk
00:01:05]} {[%emt 00:00:07]} Qxa4 {[%clk 00:02:06]} {[%emt 00:00:17]} 46. Rf2
{[%clk 00:00:38]} {[%emt 00:00:56]} Qa2+ {[%clk 00:02:13]} {[%emt 00:00:23]} 47.
Ke3 {[%clk 00:01:02]} {[%emt 00:00:06]} Qb1 {[%clk 00:01:37]} {[%emt 00:01:06]}
48. Qf3 {[%clk 00:00:35]} {[%emt 00:00:58]} Qb3+ {[%clk 00:01:05]} {[%emt
00:01:01]} 49. Ke2 {[%clk 00:00:39]} {[%emt 00:00:26]} Qc2+ {[%clk 00:00:58]}
{[%emt 00:00:37]} 50. Ke3 {[%clk 00:00:54]} {[%emt 00:00:16]} Qb3+ {[%clk
00:01:03]} {[%emt 00:00:25]} 51. Kd2 {[%clk 00:00:48]} {[%emt 00:00:34]} Qb2+
{[%clk 00:01:02]} {[%emt 00:00:32]} 52. Ke3 {[%clk 00:01:07]} {[%emt 00:00:11]}
Qc3+ {[%clk 00:00:54]} {[%emt 00:00:38]} 53. Rd3 {[%clk 00:01:07]} {[%emt
00:00:30]} Qxb4 {[%clk 00:00:52]} {[%emt 00:00:32]} 54. Qf6+ {[%clk 00:00:33]}
{[%emt 00:01:03]} Kg8 {[%clk 00:01:21]} {[%emt 00:00:01]} 55. Rf4 {[%clk
00:00:44]} {[%emt 00:00:20]} Rxe4+ {[%clk 00:01:17]} {[%emt 00:00:35]} 56. Rxe4
{[%clk 00:00:48]} {[%emt 00:00:25]} Qxe4+ {[%clk 00:01:37]} {[%emt 00:00:10]}
57. Kd2 {[%clk 00:01:08]} {[%emt 00:00:10]} Qe1+ {[%clk 00:01:13]} {[%emt
00:00:54]} 58. Kc2 {[%clk 00:01:34]} {[%emt 00:00:04]} Re2+ {[%clk 00:00:51]}
{[%emt 00:00:52]} 59. Kb3 {[%clk 00:01:59]} {[%emt 00:00:06]} Qb1+ {[%clk
00:01:02]} {[%emt 00:00:18]} 60. Kc4 {[%clk 00:02:24]} {[%emt 00:00:05]} Re4+
{[%clk 00:00:58]} {[%emt 00:00:35]} 61. Rd4 {[%clk 00:02:23]} {[%emt 00:00:30]}
Qc2+ {[%clk 00:00:56]} {[%emt 00:00:31]} 62. Kd5 {[%clk 00:02:31]} {[%emt
00:00:22]} Rxd4+ {[%clk 00:00:55]} {[%emt 00:00:32]} 63. Qxd4 {[%clk 00:02:57]}
{[%emt 00:00:05]} Qg2+ {[%clk 00:01:05]} {[%emt 00:00:19]} 64. Ke6 {[%clk
00:03:11]} {[%emt 00:00:16]} Qc6+ {[%clk 00:00:54]} {[%emt 00:00:42]} 65. Ke7
{[%clk 00:02:05]} {[%emt 00:01:36]} Qf3 {[%clk 00:00:42]} {[%emt 00:00:42]} 66.
Kd7 {[%clk 00:01:23]} {[%emt 00:01:11]} Qf7+ {[%clk 00:00:53]} {[%emt
00:00:19]} 67. Kc6 {[%clk 00:01:37]} {[%emt 00:00:16]} a5 {[%clk 00:00:50]}
{[%emt 00:00:33]} 68. Kb5 {[%clk 00:01:32]} {[%emt 00:00:35]} Qe8+ {[%clk
00:00:54]} {[%emt 00:00:27]} 69. c6 {[%clk 00:00:58]} {[%emt 00:01:03]} Kf7
{[%clk 00:00:34]} {[%emt 00:00:50]} 70. Qf4+ {[%clk 00:00:40]} {[%emt
00:00:48]} Kg6 {[%clk 00:00:45]} {[%emt 00:00:19]} 71. Qxc7 {[%clk 00:01:00]}
{[%emt 00:00:11]} Qe2+ {[%clk 00:00:35]} {[%emt 00:00:39]} 72. Kxa5 {[%clk
00:01:05]} {[%emt 00:00:26]} Qxg4 {[%clk 00:00:35]} {[%emt 00:00:29]} 73. Qd6+
{[%clk 00:01:22]} {[%emt 00:00:13]} Kh5 {[%clk 00:00:36]} {[%emt 00:00:29]} 74.
Qe5 {[%clk 00:01:31]} {[%emt 00:00:20]} Kg6 {[%clk 00:00:32]} {[%emt 00:00:36]}
75. Qe8+ {[%clk 00:01:21]} {[%emt 00:00:39]} Kh6 {[%clk 00:00:33]} {[%emt
00:00:29]} 76. Qf8+ {[%clk 00:01:21]} {[%emt 00:00:30]} Kh5 {[%clk 00:00:58]}
{[%emt 00:00:04]} 77. Qf7 {[%clk 00:01:31]} {[%emt 00:00:20]} Kh6 {[%clk
00:01:22]} {[%emt 00:00:07]} 78. c7 {[%clk 00:01:44]} {[%emt 00:00:18]} Qg5+
{[%clk 00:01:11]} {[%emt 00:00:40]} 79. Ka6 {[%clk 00:01:49]} {[%emt 00:00:25]}
Qc5 {[%clk 00:00:40]} {[%emt 00:01:02]} 80. Qe6 {[%clk 00:01:59]} {[%emt
00:00:19]} 1-0

[Event "TOP 12 FEMININ 2022 - Phase 1"]
[Site "MULHOUSE, France"]
[Date "2022.04.09"]
[Round "3.12"]
[White "THOMAS  VAN, Anysia"]
[Black "IONUTIU JUV, Adela"]
[Result "1-0"]
[TimeControl "90 min +30 secondes par coup"]
[WhiteElo "2128"]
[BlackElo "1949"]

1. d4 {[%clk 01:30:56]} {[%emt 00:00:03]} Nf6 {[%clk 01:24:18]} {[%emt
00:06:43]} 2. c4 {[%clk 01:31:20]} {[%emt 00:00:06]} g6 {[%clk 01:24:42]}
{[%emt 00:00:06]} 3. Nc3 {[%clk 01:31:46]} {[%emt 00:00:04]} Bg7 {[%clk
01:25:05]} {[%emt 00:00:08]} 4. e4 {[%clk 01:32:11]} {[%emt 00:00:04]} d6
{[%clk 01:25:30]} {[%emt 00:00:05]} 5. h3 {[%clk 01:32:38]} {[%emt 00:00:03]}
O-O {[%clk 01:25:50]} {[%emt 00:00:10]} 6. Nf3 {[%clk 01:33:02]} {[%emt
00:00:06]} e5 {[%clk 01:24:21]} {[%emt 00:01:59]} 7. d5 {[%clk 01:33:26]}
{[%emt 00:00:06]} Nh5 {[%clk 01:24:35]} {[%emt 00:00:17]} 8. g3 {[%clk
01:33:50]} {[%emt 00:00:06]} Na6 {[%clk 01:24:17]} {[%emt 00:00:47]} 9. Be3
{[%clk 01:32:30]} {[%emt 00:01:49]} f5 {[%clk 01:23:35]} {[%emt 00:01:13]} 10.
exf5 {[%clk 01:32:31]} {[%emt 00:00:29]} gxf5 {[%clk 01:23:38]} {[%emt
00:00:27]} 11. Ng5 {[%clk 01:32:10]} {[%emt 00:00:50]} Qe8 {[%clk 01:11:21]}
{[%emt 00:12:47]} 12. Be2 {[%clk 01:32:20]} {[%emt 00:00:21]} Nf6 {[%clk
01:11:26]} {[%emt 00:00:26]} 13. Qd2 {[%clk 01:31:31]} {[%emt 00:01:18]} Bd7
{[%clk 01:09:35]} {[%emt 00:02:20]} 14. O-O-O {[%clk 01:29:14]} {[%emt
00:02:47]} Nc5 {[%clk 01:04:15]} {[%emt 00:05:51]} 15. g4 {[%emt 00:28:57]} h6
{[%clk 00:47:33]} {[%emt 00:17:04]} 16. Ne6 {[%clk 00:58:15]} {[%emt 00:03:10]}
Nxe6 {[%clk 00:42:48]} {[%emt 00:05:15]} 17. dxe6 {[%clk 00:58:33]} {[%emt
00:00:12]} Bc6 {[%clk 00:43:13]} {[%emt 00:00:05]} 18. gxf5 {[%clk 00:53:55]}
{[%emt 00:05:08]} Kh7 {[%clk 00:40:48]} {[%emt 00:02:55]} 19. Rhg1 {[%clk
00:53:00]} {[%emt 00:01:25]} Qe7 {[%clk 00:34:17]} {[%emt 00:07:01]} 20. Nd5
{[%clk 00:43:38]} {[%emt 00:09:52]} Nxd5 {[%clk 00:33:40]} {[%emt 00:01:07]} 21.
cxd5 {[%clk 00:43:59]} {[%emt 00:00:08]} Be8 {[%clk 00:33:26]} {[%emt
00:00:44]} 22. Bd3 {[%clk 00:43:10]} {[%emt 00:01:19]} Qf6 {[%clk 00:32:40]}
{[%emt 00:01:16]} 23. Be4 {[%clk 00:42:58]} {[%emt 00:00:43]} Bh5 {[%clk
00:25:54]} {[%emt 00:07:15]} 24. f3 {[%clk 00:36:25]} {[%emt 00:07:04]} Rg8
{[%clk 00:24:48]} {[%emt 00:01:35]} 25. Rg2 {[%clk 00:34:56]} {[%emt 00:02:00]}
c6 {[%clk 00:13:05]} {[%emt 00:12:13]} 26. Rdg1 {[%clk 00:30:30]} {[%emt
00:04:56]} cxd5 {[%clk 00:12:42]} {[%emt 00:00:52]} 27. Qxd5 {[%clk 00:30:50]}
{[%emt 00:00:11]} Rac8+ {[%clk 00:09:28]} {[%emt 00:03:43]} 28. Kb1 {[%clk
00:31:15]} {[%emt 00:00:05]} Kh8 {[%clk 00:07:30]} {[%emt 00:02:29]} 29. a3
{[%clk 00:26:03]} {[%emt 00:05:41]} Rc6 {[%clk 00:04:14]} {[%emt 00:03:46]} 30.
Qd2 {[%clk 00:23:06]} {[%emt 00:03:27]} Bxf3 {[%clk 00:04:32]} {[%emt
00:00:13]} 31. Bxf3 {[%clk 00:18:04]} {[%emt 00:05:31]} Qxf5+ {[%clk 00:04:57]}
{[%emt 00:00:06]} 32. Ka1 {[%clk 00:18:28]} {[%emt 00:00:05]} Qxf3 {[%clk
00:04:31]} {[%emt 00:00:56]} 33. Bxh6 {[%clk 00:18:47]} {[%emt 00:00:11]} Rc7
{[%clk 00:03:45]} {[%emt 00:01:16]} 34. Bxg7+ {[%clk 00:18:49]} {[%emt
00:00:28]} 1-0

[Event "TOP 12 FEMININ 2022 - Phase 1"]
[Site "MULHOUSE, France"]
[Date "2022.04.09"]
[Round "3.13"]
[White "GUICHARD  ASN, Pauline"]
[Black "LE MAREC  DOM, Laura"]
[Result "1-0"]
[TimeControl "90 min +30 secondes par coup"]
[WhiteElo "2371"]
[BlackElo "1770"]

1. d4 {[%clk 01:30:57]} {[%emt 00:00:02]} c5 {[%clk 01:30:30]} {[%emt
00:00:31]} 2. d5 {[%clk 01:31:16]} {[%emt 00:00:11]} e5 {[%clk 01:30:52]}
{[%emt 00:00:07]} 3. e4 {[%clk 01:31:19]} {[%emt 00:00:27]} d6 {[%clk
01:31:06]} {[%emt 00:00:17]} 4. c4 {[%clk 01:31:32]} {[%emt 00:00:16]} g6
{[%clk 01:30:51]} {[%emt 00:00:46]} 5. Nf3 {[%clk 01:27:31]} {[%emt 00:04:30]}
Bg7 {[%clk 01:30:39]} {[%emt 00:00:43]} 6. Nc3 {[%clk 01:26:23]} {[%emt
00:01:37]} Ne7 {[%clk 01:29:25]} {[%emt 00:01:44]} 7. h3 {[%clk 01:24:37]}
{[%emt 00:02:16]} f5 {[%clk 01:22:21]} {[%emt 00:07:34]} 8. Bd3 {[%clk
01:19:53]} {[%emt 00:05:15]} O-O {[%clk 01:20:06]} {[%emt 00:02:45]} 9. Qe2
{[%clk 01:19:24]} {[%emt 00:00:58]} Nd7 {[%clk 01:17:10]} {[%emt 00:03:26]} 10.
g4 {[%clk 01:13:34]} {[%emt 00:06:20]} fxe4 {[%clk 01:02:37]} {[%emt 00:15:03]}
11. Nxe4 {[%clk 01:12:49]} {[%emt 00:01:15]} Nf6 {[%clk 01:00:37]} {[%emt
00:02:31]} 12. Bd2 {[%clk 01:10:24]} {[%emt 00:02:54]} Nxg4 {[%clk 00:44:29]}
{[%emt 00:16:38]} 13. hxg4 {[%clk 01:09:09]} {[%emt 00:01:45]} Bxg4 {[%clk
00:44:01]} {[%emt 00:00:58]} 14. Neg5 {[%clk 01:09:30]} {[%emt 00:00:09]} h6
{[%clk 00:40:51]} {[%emt 00:03:41]} 15. Qe4 {[%clk 00:47:19]} {[%emt 00:22:40]}
Bf5 {[%clk 00:39:28]} {[%emt 00:01:54]} 16. Qe3 {[%clk 00:47:37]} {[%emt
00:00:11]} hxg5 {[%clk 00:31:41]} {[%emt 00:08:18]} 17. Nxg5 {[%clk 00:47:57]}
{[%emt 00:00:10]} e4 {[%clk 00:27:06]} {[%emt 00:05:04]} 18. Bxe4 {[%clk
00:41:23]} {[%emt 00:07:05]} Re8 {[%clk 00:13:04]} {[%emt 00:14:32]} 19. Bc3
{[%clk 00:35:42]} {[%emt 00:06:10]} Bxe4 {[%clk 00:09:25]} {[%emt 00:04:10]} 20.
Qh3 {[%clk 00:32:36]} {[%emt 00:03:35]} Nf5 {[%clk 00:07:01]} {[%emt 00:02:54]}
21. Qh8+ {[%clk 00:31:22]} {[%emt 00:01:44]} 1-0